fUST/lending_fUST_20240907
["ID","MTS","AMOUNT","RATE_DAILY","PERIOD"]
[337493045,1725701442416,-464.603148,0.00046749,120]
[337493046,1725701442427,-464.603148,0.00046749,120]
[337493047,1725701442437,-151.0,0.00046749,120]
[337493048,1725701442447,-151.0,0.00046749,120]
[337493049,1725701442456,-151.0,0.00046749,120]
[337493050,1725701442467,-151.0,0.00046749,120]
[337493051,1725701442477,-169.766846,0.00046749,120]
[337493052,1725701442488,-169.766846,0.00046749,120]
[337493053,1725701442497,-48092.03703779,0.00046749,120]
[337493069,1725701443229,-500.0,0.00046575,120]
[337493070,1725701443239,-4521.20946952,0.00046749,120]
[337493071,1725701443258,-1005.99151042,0.00046749,120]
[337493086,1725701472199,2500.0,0.00034356,120]
[337493087,1725701490623,54.36519353,0.00030716,30]
[337493088,1725701490647,167.34636016,0.00030716,30]
[337493089,1725701656350,2500.0,0.00034366,120]
[337493090,1725701710834,2500.0,0.00034366,120]
[337493100,1725702081535,2500.0,0.00034361,120]
[337493111,1725702344154,-151.0,0.0003,120]
[337493112,1725702344176,-116.96826148,0.0003072,2]
[337493113,1725702346202,336344.03758,0.00034361,30]
[337493114,1725702426137,-214.43287136,0.0003072,2]
[337493116,1725702427143,-185.56712864,0.0003072,2]
[337493117,1725702427166,-902.72376486,0.00030721,30]
[337493118,1725702434097,-603.40085455,0.00030721,30]
[337493119,1725702549232,-400.0,0.00030719,2]
[337493120,1725702549256,-428.69849844,0.0003072,30]
[337493121,1725702550113,-16043.78530156,0.0003072,30]
[337493122,1725702550135,-171.664736,0.00031292,2]
[337493123,1725702550159,-250.0,0.00031362,2]
[337493124,1725702550182,-294.9411934,0.00031549,2]
[337493125,1725702550204,-206.5936382,0.00032676,2]
[337493126,1725702550229,-162.123292,0.00033415,2]
[337493127,1725702550253,-167.84920253,0.00033568,2]
[337493128,1725702550278,-162.123292,0.00033573,2]
[337493129,1725702550299,-162.123292,0.00033731,2]
[337493130,1725702550323,-556.0,0.00033791,2]
[337493131,1725702550348,-162.123292,0.00033889,2]
[337493132,1725702550373,-162.123292,0.00034048,2]
[337493133,1725702550395,-1314.92995312,0.00034089,2]
[337493134,1725702550419,-24900.0,0.00034176,2]
[337493135,1725702550441,-1964.3931083,0.00034189,24]
[337493136,1725702550462,-162.123292,0.00034206,2]
[337493137,1725702550484,-162.123292,0.00034364,2]
[337493138,1725702550510,-162.123292,0.00034523,2]
[337493139,1725702550533,-605.80067225,0.00034531,24]
[337493140,1725702550556,-162.123292,0.00034681,2]
[337493141,1725702550581,-162.123292,0.00034839,2]
[337493142,1725702550609,-162.123292,0.00034998,2]
[337493143,1725702550631,-162.123292,0.00035156,2]
[337493144,1725702550655,-472.691,0.0003673,46]
[337493145,1725702580945,201.01962436,0.00036657,2]
[337493148,1725702599924,166.252096,0.00039696,2]
[337493149,1725702600142,166.252096,0.00039991,2]
[337493150,1725702600558,166.252096,0.00040287,2]
[337493151,1725702600784,166.252096,0.00040582,2]
[337493152,1725702601024,119.78190055,0.00040878,2]
[337493196,1725702632728,-46.47019545,0.00040878,2]
[337493197,1725702632738,-229.63263985,0.00041096,2]
[337493198,1725702632750,-478.08378915,0.00041096,2]
[337493199,1725702632760,-166.252096,0.00041173,2]
[337493200,1725702632770,-166.252096,0.00041469,2]
[337493201,1725702632779,-166.252096,0.00041764,2]
[337493202,1725702632788,-707.716429,0.00041781,2]
[337493203,1725702632798,-254.27125085,0.00041818,2]
[337493204,1725702632808,-153.0,0.00041918,120]
[337493205,1725702632818,-151.0,0.00042,120]
[337493206,1725702632827,-5534.34777399,0.00042217,2]
[337493207,1725702632837,-707.716429,0.00042466,2]
[337493208,1725702632847,-5534.34777399,0.00042634,2]
[337493209,1725702632857,-5534.34777399,0.00042929,2]
[337493210,1725702632867,-5534.34777399,0.00043153,2]
[337493211,1725702632876,-5534.34777399,0.00043289,2]
[337493212,1725702632886,-5534.34777399,0.00043654,2]
[337493213,1725702632896,-5534.34777399,0.00044107,2]
[337493214,1725702632907,-5534.34777399,0.00044223,2]
[337493215,1725702632917,-5534.34777399,0.0004449,2]
[337493216,1725702632927,-5534.34777399,0.00044825,2]
[337493217,1725702632939,-5534.34777399,0.00045144,2]
[337493218,1725702632949,-500.0,0.00045205,120]
[337493219,1725702632960,-5534.34777399,0.00045336,2]
[337493220,1725702632971,-5534.34777399,0.00045721,2]
[337493221,1725702632980,-6403.33438288,0.000458,14]
[337493222,1725702632990,-5534.34777399,0.0004584,2]
[337493223,1725702632999,-578.63434032,0.000459,2]
[337493224,1725702633008,-9407.83709732,0.0004598,5]
[337493225,1725702633018,-617.87252286,0.0004598,5]
[337493226,1725702633027,-2465.27,0.00045989,3]
[337493227,1725702633037,-4703.91854866,0.0004599,5]
[337493228,1725702633047,-308.93626143,0.0004599,5]
[337493229,1725702633056,-74320.47990138,0.00045999,2]
[337493230,1725702633068,-2570.19378055,0.00045999,2]
[337493239,1725702638610,-4306.52,0.00045977,3]
[337493240,1725702638620,-269.0487176,0.00045998,120]
[337493241,1725702638629,-500.0,0.00045998,120]
[337493242,1725702638638,-500.0,0.00045998,120]
[337493243,1725702638647,-500.0,0.00045998,120]
[337493244,1725702638656,-500.0,0.00045998,120]
[337493245,1725702638665,-500.0,0.00045998,120]
[337493246,1725702638674,-500.0,0.00045998,120]
[337493247,1725702638684,-500.0,0.00045998,120]
[337493248,1725702638693,-500.0,0.00045998,120]
[337493249,1725702638702,-500.0,0.00045998,120]
[337493250,1725702638712,-500.0,0.00045998,120]
[337493251,1725702638721,-500.0,0.00045998,120]
[337493252,1725702638731,-500.0,0.00045998,120]
[337493253,1725702638740,-500.0,0.00045998,120]
[337493254,1725702638749,-500.0,0.00045998,120]
[337493255,1725702638759,-500.0,0.00045998,120]
[337493256,1725702638768,-500.0,0.00045998,120]
[337493257,1725702638777,-500.0,0.00045998,120]
[337493258,1725702638786,-500.0,0.00045998,120]
[337493259,1725702638796,-500.0,0.00045998,120]
[337493260,1725702638805,-500.0,0.00045998,120]
[337493261,1725702638815,-500.0,0.00045998,120]
[337493262,1725702638824,-500.0,0.00045998,120]
[337493263,1725702638834,-500.0,0.00045998,120]
[337493264,1725702638843,-500.0,0.00045998,120]
[337493265,1725702638853,-500.0,0.00045998,120]
[337493266,1725702638863,-500.0,0.00045998,120]
[337493267,1725702638872,-500.0,0.00045998,120]
[337493268,1725702638882,-500.0,0.00045998,120]
[337493269,1725702638892,-500.0,0.00045998,120]
[337493270,1725702638902,-500.0,0.00045998,120]
[337493271,1725702638911,-500.0,0.00045998,120]
[337493272,1725702638921,-500.0,0.00045998,120]
[337493273,1725702638931,-500.0,0.00045998,120]
[337493274,1725702638941,-500.0,0.00045998,120]
[337493275,1725702638952,-500.0,0.00045998,120]
[337493276,1725702638962,-500.0,0.00045998,120]
[337493277,1725702638971,-500.0,0.00045998,120]
[337493278,1725702638980,-500.0,0.00045998,120]
[337493279,1725702638989,-500.0,0.00045998,120]
[337493280,1725702638998,-500.0,0.00045998,120]
[337493281,1725702639008,-500.0,0.00045998,120]
[337493282,1725702639017,-500.0,0.00045998,120]
[337493283,1725702639026,-500.0,0.00045998,120]
[337493284,1725702639035,-500.0,0.00045998,120]
[337493285,1725702639045,-500.0,0.00045998,120]
[337493286,1725702639054,-500.0,0.00045998,120]
[337493287,1725702639063,-500.0,0.00045998,120]
[337493288,1725702639072,-500.0,0.00045998,120]
[337493289,1725702639081,-491.97090121,0.00045998,120]
[337493290,1725702639090,-500.0,0.00045998,120]
[337493291,1725702639101,-60059.93711618,0.00045999,2]
[337493292,1725702639114,-15274.11121723,0.00045999,2]
[337493293,1725702639631,-14700.79244542,0.00045999,2]
[337493335,1725702640733,-1574.5,0.00045999,2]
[337493344,1725702640810,-14876.33314924,0.00045999,2]
[337493346,1725702640820,-31575.0,0.00046,120]
[337493348,1725702640829,-1000.0,0.00046,14]
[337493350,1725702640839,-397.7256739,0.00046055,2]
[337493352,1725702640849,-578.63434032,0.000461,2]
[337493353,1725702640859,-5534.34777399,0.00046209,2]
[337493354,1725702640868,-578.63434032,0.000463,2]
[337493355,1725702640878,-5534.34777407,0.00046422,2]
[337493356,1725702640887,-1000.0,0.00046465,2]
[337493357,1725702640896,-3462.5428148,0.00046475,2]
[337493358,1725702640905,-150.112233,0.000465,15]
[337493359,1725702640914,-578.63434032,0.000465,2]
[337493360,1725702640924,-150.0,0.00046511,2]
[337493361,1725702640934,-500.0,0.00046554,120]
[337493362,1725702640944,-181.39421725,0.00046554,120]
[337493363,1725702640953,-569.67430626,0.00046554,120]
[337493364,1725702640964,-500.0,0.00046554,120]
[337493365,1725702640973,-1654.69308976,0.00046555,5]
[337493368,1725702644176,-3588.76,0.00046545,3]
[337493370,1725702644186,-6411.24,0.00046555,5]
[337493417,1725703547139,-172.8422374,0.000299,2]
[337493418,1725703625106,-81.42901345,0.000299,2]
[337493419,1725703625127,-151.0,0.0003,120]
[337493420,1725703625149,-25.99058868,0.0003,120]
[337493421,1725703629285,-125.00941132,0.0003,120]
[337493422,1725703629310,-115.98995755,0.0003325,2]
[337493423,1725703633114,-41.31344045,0.0003325,2]
[337493424,1725703633137,-157.303398,0.00033408,2]
[337493425,1725703633158,-102.38911887,0.00033565,2]
[337493426,1725703636211,-54.91427913,0.00033565,2]
[337493427,1725703636231,-177.855293,0.00033655,2]
[337493428,1725703636253,-41.45315627,0.00033723,2]
[337493429,1725703653097,-115.85024173,0.00033723,2]
[337493430,1725703653119,-324.0,0.00033768,2]
[337493431,1725703653142,-508.86969019,0.00033769,2]
[337493432,1725703756114,-225.0135201,0.00033386,2]
[337493433,1725703756136,-400.0,0.00033768,2]
[337493434,1725703756158,-23633.39958101,0.00033769,2]
[337493435,1725703762097,-177.9534826,0.00032373,2]
[337493436,1725703762121,-478.73397984,0.00033769,2]
[337493437,1725703762152,-278.99674896,0.00033769,2]
[337493438,1725703762173,-179.0,0.000338,5]
[337493439,1725703762196,-348.83887081,0.000338,2]
[337493440,1725703764135,-152.33958201,0.000338,2]
[337493441,1725703764162,-16.89034693,0.000338,5]
[337493446,1725703832652,-185.8824663,0.00033649,30]
[337493447,1725703832663,-183.10965307,0.000338,5]
[337493448,1725703832673,-501.98218195,0.000338,5]
[337493449,1725703832682,-200.0,0.000338,5]
[337493450,1725703832692,-203.539245,0.000338,5]
[337493451,1725703832702,-170.0,0.000338,5]
[337493452,1725703832713,-400.0,0.00033879,2]
[337493453,1725703832724,-157.303398,0.0003388,2]
[337493454,1725703832736,-157.303398,0.00034038,2]
[337493455,1725703832748,-157.303398,0.00034195,2]
[337493456,1725703832758,-157.303398,0.00034353,2]
[337493457,1725703832769,-157.303398,0.0003451,2]
[337493458,1725703832781,-157.303398,0.00034668,2]
[337493459,1725703832792,-157.303398,0.00034825,2]
[337493460,1725703832804,-157.303398,0.00034983,2]
[337493461,1725703832813,-225.8609559,0.00035454,2]
[337493462,1725703832822,-181.589517,0.00035616,120]
[337493463,1725703832832,-170.0,0.0003565,5]
[337493464,1725703832841,-160.0,0.00037267,2]
[337493465,1725703832850,-207.97878043,0.00037441,48]
[337493466,1725703832866,-170.17321957,0.00037441,48]
[337493467,1725703832875,-201.7538101,0.000375,5]
[337493468,1725703832884,-139.53197033,0.00040273,2]
[337493473,1725703838686,-166.46802967,0.00040273,2]
[337493474,1725703838697,-397.7256739,0.00040273,2]
[337493475,1725703838706,-306.0,0.0004041,2]
[337493476,1725703838716,-153.0,0.0004041,2]
[337493477,1725703838725,-153.0,0.0004041,2]
[337493478,1725703838734,-153.0,0.0004041,2]
[337493479,1725703838744,-192.52266932,0.00040778,2]
[337493480,1725703838754,-8438.431866,0.00041096,2]
[337493481,1725703838765,-8438.431866,0.00041781,2]
[337493482,1725703838774,-5455.93749528,0.00041796,2]
[337493483,1725703838784,-153.0,0.00041918,120]
[337493484,1725703838793,-153.0,0.00041918,120]
[337493485,1725703838803,-153.0,0.00041918,120]
[337493486,1725703838813,-153.0,0.00041918,120]
[337493487,1725703838823,-153.0,0.00041918,120]
[337493488,1725703838832,-153.0,0.00041918,120]
[337493489,1725703838842,-5455.93749528,0.00041923,2]
[337493490,1725703838851,-151.0,0.00042,120]
[337493491,1725703838860,-5455.93749528,0.00042438,2]
[337493492,1725703838869,-8438.431866,0.00042466,2]
[337493493,1725703838879,-5455.93749528,0.00042648,2]
[337493494,1725703838889,-5455.93749528,0.00042782,2]
[337493495,1725703838899,-5455.93749528,0.00043061,2]
[337493496,1725703838908,-592.65736127,0.00043329,7]
[337493497,1725703838917,-161.5,0.00043418,7]
[337493498,1725703838927,-608.5,0.00043418,7]
[337493499,1725703838937,-161.5,0.00043418,7]
[337493500,1725703838946,-5455.93749528,0.00043455,2]
[337493501,1725703838958,-500.0,0.00043471,7]
[337493502,1725703838967,-269.0487176,0.00043471,31]
[337493503,1725703838976,-549.98821504,0.00043471,31]
[337493504,1725703838986,-500.90656064,0.00043471,7]
[337493505,1725703838996,-549.98821504,0.00043471,31]
[337493506,1725703839005,-549.98821504,0.00043471,31]
[337493507,1725703839014,-549.98821504,0.00043471,31]
[337493508,1725703839024,-549.98821504,0.00043471,31]
[337493509,1725703839034,-549.98821504,0.00043471,31]
[337493510,1725703839044,-549.98821504,0.00043471,31]
[337493511,1725703839053,-549.98821504,0.00043471,31]
[337493512,1725703839063,-549.98821504,0.00043471,31]
[337493513,1725703839073,-549.98821504,0.00043471,31]
[337493514,1725703839082,-549.98821504,0.00043471,31]
[337493515,1725703839092,-549.98821504,0.00043471,31]
[337493516,1725703839101,-549.98821504,0.00043471,31]
[337493517,1725703839110,-549.98821504,0.00043471,31]
[337493518,1725703839120,-549.98821504,0.00043471,31]
[337493519,1725703839129,-549.98821504,0.00043471,31]
[337493520,1725703839138,-549.98821504,0.00043471,31]
[337493521,1725703839148,-549.98821504,0.00043471,31]
[337493522,1725703839157,-549.98821504,0.00043471,31]
[337493523,1725703839167,-549.98821504,0.00043471,31]
[337493524,1725703839176,-549.98821504,0.00043471,31]
[337493525,1725703839186,-549.98821504,0.00043471,31]
[337493526,1725703839195,-549.98821504,0.00043471,31]
[337493527,1725703839204,-549.98821504,0.00043471,31]
[337493528,1725703839214,-549.98821504,0.00043471,31]
[337493529,1725703839223,-549.98821504,0.00043471,31]
[337493530,1725703839233,-549.98821504,0.00043471,31]
[337493531,1725703839243,-549.98821504,0.00043471,31]
[337493532,1725703839254,-549.98821504,0.00043471,31]
[337493533,1725703839264,-549.98821504,0.00043471,31]
[337493534,1725703839275,-549.98821504,0.00043471,31]
[337493535,1725703839284,-549.98821504,0.00043471,31]
[337493536,1725703839294,-549.98821504,0.00043471,31]
[337493537,1725703839304,-549.98821504,0.00043471,31]
[337493538,1725703839314,-549.98821504,0.00043471,31]
[337493539,1725703839327,-549.98821504,0.00043471,31]
[337493540,1725703839338,-549.98821504,0.00043471,31]
[337493541,1725703839350,-549.98821504,0.00043471,31]
[337493542,1725703839360,-549.98821504,0.00043471,31]
[337493543,1725703839370,-549.98821504,0.00043471,31]
[337493544,1725703839379,-549.98821504,0.00043471,31]
[337493545,1725703839508,-549.98821504,0.00043471,31]
[337493546,1725703839518,-549.98821504,0.00043471,31]
[337493547,1725703839527,-549.98821504,0.00043471,31]
[337493548,1725703839536,-549.98821504,0.00043471,31]
[337493549,1725703839546,-549.98821504,0.00043471,31]
[337493550,1725703839555,-549.98821504,0.00043471,31]
[337493551,1725703839564,-549.98821504,0.00043471,31]
[337493552,1725703839574,-549.98821504,0.00043471,31]
[337493553,1725703839583,-549.98821504,0.00043471,31]
[337493554,1725703839592,-549.98821504,0.00043471,31]
[337493555,1725703839602,-549.98821504,0.00043471,31]
[337493556,1725703839612,-549.98821504,0.00043471,31]
[337493557,1725703839621,-549.98821504,0.00043471,31]
[337493558,1725703839630,-549.98821504,0.00043471,31]
[337493559,1725703839639,-549.98821504,0.00043471,31]
[337493560,1725703839648,-158.5,0.00043473,10]
[337493561,1725703839658,-500.0,0.00043473,10]
[337493562,1725703839667,-170.5,0.00043473,7]
[337493563,1725703839677,-452.62689913,0.00043473,10]
[337493564,1725703839686,-160.06671283,0.00043473,10]
[337493565,1725703839696,-198.5,0.00043473,7]
[337493566,1725703839705,-187.0,0.00043473,7]
[337493567,1725703839714,-168.5,0.00043473,7]
[337493568,1725703839723,-5991.10641804,0.00043473,5]
[337493569,1725703839732,-308.93626125,0.00043473,5]
[337493570,1725703839741,-5991.10641804,0.00043562,5]
[337493571,1725703839751,-308.93626125,0.00043562,5]
[337493572,1725703839760,-5455.93749528,0.00043813,2]
[337493573,1725703839772,-5455.93749528,0.00043958,2]
[337493574,1725703839782,-500.0,0.00044021,10]
[337493575,1725703839791,-766.79934054,0.00044082,2]
[337493576,1725703839801,-5455.93749528,0.00044148,2]
[337493577,1725703839810,-11982.2128361,0.00044182,5]
[337493578,1725703839820,-617.8725225,0.00044182,5]
[337493579,1725703839830,-11982.2128361,0.00044183,5]
[337493580,1725703839839,-617.8725225,0.00044183,5]
[337493581,1725703839849,-11982.2128361,0.00044192,5]
[337493582,1725703839858,-617.8725225,0.00044192,5]
[337493583,1725703839868,-88888.0,0.00044193,60]
[337493584,1725703839876,-151.0,0.00044193,120]
[337493585,1725703839886,-241.580826,0.00044193,120]
[337493586,1725703839896,-241.580826,0.00044193,120]
[337493587,1725703839905,-151.0,0.00044193,120]
[337493588,1725703839914,-151.0,0.00044193,120]
[337493589,1725703839925,-247.269234,0.00044202,120]
[337493590,1725703839935,-151.0,0.00044202,120]
[337493591,1725703839946,-151.0,0.00044202,120]
[337493592,1725703839958,-210.80983,0.00044202,120]
[337493593,1725703839968,-247.269234,0.00044202,120]
[337493594,1725703839978,-151.0,0.00044202,120]
[337493595,1725703839988,-210.80983,0.00044202,120]
[337493596,1725703839997,-152.200835,0.00044202,30]
[337493597,1725703840007,-151.0,0.00044202,120]
[337493598,1725703840016,-217.546237,0.00044202,120]
[337493599,1725703840027,-217.546237,0.00044202,120]
[337493600,1725703840036,-151.0,0.00044202,120]
[337493601,1725703840046,-151.0,0.00044202,120]
[337493602,1725703840057,-209.333017,0.00044202,120]
[337493603,1725703840068,-151.0,0.00044202,120]
[337493604,1725703840080,-209.333017,0.00044202,120]
[337493605,1725703840089,-151.0,0.00044202,120]
[337493606,1725703840099,-151.0,0.00044202,120]
[337493607,1725703840109,-387.91399,0.00044202,120]
[337493608,1725703840118,-399.683246,0.00044202,90]
[337493609,1725703840128,-387.91399,0.00044202,120]
[337493610,1725703840137,-399.683246,0.00044202,90]
[337493611,1725703840146,-197.825551,0.00044202,120]
[337493612,1725703840156,-197.825551,0.00044202,120]
[337493613,1725703840165,-166.284662,0.00044202,120]
[337493614,1725703840175,-330.39839,0.00044202,120]
[337493615,1725703840184,-241.580826,0.00044202,120]
[337493616,1725703840193,-330.39839,0.00044202,120]
[337493617,1725703840203,-241.580826,0.00044202,120]
[337493618,1725703840213,-151.0,0.00044202,120]
[337493619,1725703840222,-151.0,0.00044202,120]
[337493620,1725703840231,-151.0,0.00044202,120]
[337493621,1725703840241,-5455.93749528,0.00044652,2]
[337493622,1725703840250,-153.0,0.00044671,120]
[337493623,1725703840259,-153.0,0.00044671,120]
[337493624,1725703840271,-153.0,0.00044671,120]
[337493625,1725703840280,-153.0,0.00044671,120]
[337493627,1725703840290,-766.79934051,0.0004468,2]
[337493628,1725703840300,-5455.93749528,0.00044789,2]
[337493629,1725703840309,-5455.93749528,0.00044967,2]
[337493630,1725703840319,-425.05479371,0.00045207,2]
[337493631,1725703840431,-5030.88270157,0.00045207,2]
[337493632,1725703840440,-766.79934051,0.00045279,2]
[337493633,1725703840450,-151.0,0.00045366,120]
[337493634,1725703840460,-151.0,0.00045366,120]
[337493635,1725703840469,-151.0,0.00045366,120]
[337493636,1725703840479,-151.0,0.00045366,120]
[337493637,1725703840488,-151.0,0.00045366,30]
[337493638,1725703840497,-367.942129,0.00045366,120]
[337493639,1725703840507,-151.0,0.00045366,120]
[337493640,1725703840516,-367.942129,0.00045366,120]
[337493641,1725703840526,-151.0,0.00045366,120]
[337493642,1725703840535,-151.0,0.00045366,120]
[337493643,1725703840545,-189.879878,0.00045366,120]
[337493644,1725703840555,-495.30008582,0.000455,120]
[337493645,1725703840565,-500.0,0.0004552,120]
[337493646,1725703840576,-569.67430626,0.0004552,120]
[337493647,1725703840585,-500.0,0.0004552,120]
[337493648,1725703840594,-181.39421725,0.0004552,120]
[337493649,1725703840603,-3103.07822442,0.00045521,61]
[337493650,1725703840613,-76346.58372316,0.00045521,2]
[337493651,1725703840628,-58033.83328684,0.00045521,2]
[337493652,1725703840637,-5991.10641804,0.00045522,5]
[337493653,1725703840647,-308.93626125,0.00045522,5]
[337493654,1725703840656,-11982.2128361,0.00045649,5]
[337493655,1725703840665,-617.8725225,0.00045649,5]
[337493656,1725703840675,-872.26339967,0.00045652,120]
[337493657,1725703840684,-151.0,0.00045659,120]
[337493658,1725703840694,-151.0,0.00045659,120]
[337493659,1725703840703,-151.0,0.00045659,120]
[337493660,1725703840712,-151.0,0.00045659,120]
[337493661,1725703840721,-151.0,0.00045659,30]
[337493662,1725703840730,-367.942129,0.00045659,120]
[337493663,1725703840740,-151.0,0.00045659,120]
[337493664,1725703840750,-367.942129,0.00045659,120]
[337493665,1725703840760,-151.0,0.00045659,120]
[337493666,1725703840773,-151.0,0.00045659,120]
[337493667,1725703840782,-247.269234,0.00045659,120]
[337493668,1725703840792,-152.049625,0.00045659,120]
[337493669,1725703840802,-151.0,0.00045659,120]
[337493670,1725703840811,-210.80983,0.00045659,120]
[337493672,1725703840821,-247.269234,0.00045659,120]
[337493674,1725703840831,-151.0,0.00045659,120]
[337493676,1725703840840,-210.80983,0.00045659,120]
[337493678,1725703840850,-151.0,0.00045659,120]
[337493680,1725703840860,-217.546237,0.00045659,120]
[337493682,1725703840869,-217.546237,0.00045659,120]
[337493684,1725703840878,-151.0,0.00045659,120]
[337493686,1725703840888,-152.836785,0.00045659,120]
[337493688,1725703840897,-209.333017,0.00045659,120]
[337493690,1725703840907,-151.0,0.00045659,120]
[337493692,1725703840917,-209.333017,0.00045659,120]
[337493694,1725703840926,-151.0,0.00045659,120]
[337493696,1725703840936,-151.0,0.00045659,120]
[337493698,1725703840946,-387.91399,0.00045659,120]
[337493700,1725703840958,-399.683246,0.00045659,90]
[337493702,1725703840968,-387.91399,0.00045659,120]
[337493704,1725703840977,-399.683246,0.00045659,90]
[337493706,1725703840987,-197.825551,0.00045659,120]
[337493708,1725703840997,-197.825551,0.00045659,120]
[337493710,1725703841006,-330.39839,0.00045659,120]
[337493712,1725703841016,-241.580826,0.00045659,120]
[337493714,1725703841027,-330.39839,0.00045659,120]
[337493716,1725703841037,-241.580826,0.00045659,120]
[337493718,1725703841047,-151.0,0.00045659,120]
[337493719,1725703841057,-151.0,0.00045659,120]
[337493720,1725703841067,-151.0,0.00045659,120]
[337493721,1725703841078,-1199.29471932,0.00045721,2]
[337493722,1725703841344,-2248.3498394,0.00045721,2]
[337493723,1725703841452,-2008.29293656,0.00045721,2]
[337493724,1725703841469,-6403.32,0.000458,14]
[337493725,1725703841480,-195.28,0.0004582,120]
[337493726,1725703841490,-29397.247,0.00045854,2]
[337493727,1725703841500,-766.79934051,0.00045877,2]
[337493728,1725703841510,-150.0,0.00045898,2]
[337493729,1725703841520,-3462.5428148,0.00045899,2]
[337493730,1725703841530,-5455.93749528,0.0004595,2]
[337493731,1725703841540,-151.0,0.0004595,120]
[337493732,1725703841552,-453.838725,0.0004595,120]
[337493733,1725703841564,-453.838725,0.0004595,120]
[337493734,1725703841575,-150.11224,0.00046,11]
[337493735,1725703841585,-150.0,0.00046072,2]
[337493736,1725703841595,-5455.9374954,0.0004613,2]
[337493737,1725703841604,-150.112233,0.000462,12]
[337493738,1725703841614,-154.26678621,0.000463,120]
[337493739,1725703841623,-1127.36448621,0.00046355,2]
[337493740,1725703841633,-5991.10641804,0.0004639,5]
[337493741,1725703841643,-308.93626125,0.0004639,5]
[337493742,1725703841652,-3504.64087807,0.0004639,45]
[337493743,1725703841665,-46495.35912193,0.0004639,45]
[337493744,1725703841676,-7699.69647375,0.000464,35]
[337493746,1725703843668,-500.0,0.00043471,31]
[337493747,1725703843678,-500.0,0.00043471,31]
[337493748,1725703843688,-500.0,0.00043471,31]
[337493750,1725703843698,-500.0,0.00043471,31]
[337493752,1725703843707,-500.0,0.00043471,31]
[337493753,1725703843717,-500.0,0.00043471,31]
[337493754,1725703843727,-500.0,0.00043471,31]
[337493755,1725703843738,-500.0,0.00043471,31]
[337493756,1725703843750,-379.29849856,0.00043471,31]
[337493757,1725703843763,-120.70150144,0.00043471,31]
[337493758,1725703843774,-270.37054534,0.00043471,31]
[337493763,1725703846766,-229.62945466,0.00043471,31]
[337493764,1725703846776,-500.0,0.00043471,31]
[337493765,1725703846787,-319.61816697,0.00043471,31]
[337493766,1725703846797,-500.0,0.00043471,31]
[337493767,1725703846806,-180.30037111,0.00043471,31]
[337493768,1725703846818,-319.69962889,0.00043471,31]
[337493769,1725703846828,-500.0,0.00043471,31]
[337493770,1725703846837,-500.0,0.00043471,31]
[337493771,1725703846847,-500.0,0.00043471,31]
[337493772,1725703846858,-500.0,0.00043471,31]
[337493773,1725703846869,-500.0,0.00043471,31]
[337493774,1725703846878,-500.0,0.00043471,31]
[337493775,1725703846888,-500.0,0.00043471,31]
[337493776,1725703846898,-500.0,0.00043471,31]
[337493777,1725703846907,-500.0,0.00043471,31]
[337493778,1725703846917,-500.0,0.00043471,31]
[337493779,1725703846926,-500.0,0.00043471,31]
[337493780,1725703846936,-500.0,0.00043471,31]
[337493781,1725703846946,-500.0,0.00043471,31]
[337493782,1725703846959,-500.0,0.00043471,31]
[337493783,1725703846969,-500.0,0.00043471,31]
[337493784,1725703846978,-500.0,0.00043471,31]
[337493785,1725703846988,-500.0,0.00043471,31]
[337493786,1725703846999,-500.0,0.00043471,31]
[337493787,1725703847009,-500.0,0.00043471,31]
[337493788,1725703847019,-4871.71,0.00045511,3]